[Event "18th Caspian Cup-A 2020"]
[Site "Rasht"]
[Date "2020.02.16"]
[Round "4.2"]
[White "Daghli, Arash"]
[Black "Pourramezanali, Amirreza"]
[Result "1/2-1/2"]
[ECO "E46"]
[WhiteElo "2424"]
[BlackElo "2497"]
[Annotator "ChessBase"]
[PlyCount "108"]
[EventDate "2020.02.14"]
[EventType "swiss"]
[EventCountry "IRI"]
[SourceTitle "playchess.com"]
[Source "ChessBase"]
[SourceQuality "1"]
[TimeControl "5400+30"]

1. d4 {[%emt 0:00:00]} e6 {[%emt 0:07:17]} 2. c4 {[%emt 0:00:00]} Nf6 {[%emt 0:00:07]} 3. Nc3 {[%emt 0:00:00]} Bb4 {[%emt 0:00:05]} 4. e3 {[%emt 0:00:00]} O-O {[%emt 0:00:29]} 5. Nge2 {[%emt 0:00:01]} c6 {[%emt 0:00:05]} 6. a3 {[%emt 0:00:06]} Ba5 {[%emt 0:00:09]} 7. c5 {[%emt 0:00:07]} d5 {[%emt 0:09:28]} 8. cxd6 {[%emt 0:00:08]} Qxd6 {[%emt 0:00:29]} 9. b4 {[%emt 0:00:01]} Bb6 {[%emt 0:04:12]} 10. Bb2 {[%emt 0:00:14]} a5 {[%emt 0:02:28]} 11. b5 {[%emt 0:02:01]} Nbd7 {[%emt 0:16:34]} 12. g3 {[%emt 0:00:02]} cxb5 {[%emt 0:07:50]} 13. Bg2 {[%emt 0:00:02]} a4 {[%emt 0:00:17]} 14. O-O {[%emt 0:19:18]} Bd8 {[%emt 0:06:55]} 15. Nxb5 {[%emt 0:02:55]} Qa6 {[%emt 0:00:41]} 16. Nec3 {[%emt 0:13:13]} Nb6 {[%emt 0:00:42]} 17. Re1 {[%emt 0:00:55]} Nc4 {[%emt 0:01:30]} 18. Qe2 {[%emt 0:06:15]} Nxb2 {[%emt 0:00:15]} 19. Qxb2 {[%emt 0:00:01]} Bd7 {[%emt 0:01:01]} 20. Bf1 {[%emt 0:04:39]} Qa5 {[%emt 0:07:05]} 21. Nd6 {[%emt 0:00:53]} Bc6 {[%emt 0:02:04]} 22. Nxb7 {[%emt 0:12:12]} Bxb7 {[%emt 0:08:12]} 23. Qxb7 {[%emt 0:00:02]} Bb6 {[%emt 0:00:19]} 24. Rec1 {[%emt 0:04:41]} Rfb8 {[%emt 0:06:18]} 25. Qf3 {[%emt 0:02:20]} Bd8 {[%emt 0:03:03]} 26. Nb5 {[%emt 0:03:45]} Ra6 {[%emt 0:03:52]} 27. Rc6 {[%emt 0:03:12]} Rxc6 {[%emt 0:00:29]} 28. Qxc6 {[%emt 0:00:05]} Be7 {[%emt 0:00:10]} 29. Rc1 {[%emt 0:01:17]} Bf8 {[%emt 0:00:19]} 30. Rb1 {[%emt 0:13:41]} h5 {[%emt 0:01:31]} 31. Qc2 {[%emt 0:01:49]} Nd5 {[%emt 0:02:07]} 32. h4 {[%emt 0:05:34]} Nc7 {[%emt 0:01:21]} 33. Nxc7 {[%emt 0:03:28]} Rxb1 {[%emt 0:00:06]} 34. Qxb1 {[%emt 0:00:04]} Qxc7 {[%emt 0:00:05]} 35. Qb5 {[%emt 0:00:44]} g6 {[%emt 0:02:04]} 36. Qxa4 {[%emt 0:00:12]} Qd6 {[%emt 0:00:05]} 37. Qe8 {[%emt 0:00:23]} Qxa3 {[%emt 0:00:06]} 38. Kg2 {[%emt 0:00:40]} Kg7 {[%emt 0:00:41]} 39. Be2 {[%emt 0:00:43]} Qd6 {[%emt 0:00:24]} 40. Bf3 {[%emt 0:00:08]} Be7 {[%emt 0:00:07]} 41. Qb5 {[%emt 0:00:43]} Bf6 {[%emt 0:00:09]} 42. d5 {[%emt 0:00:25]} e5 {[%emt 0:03:39]} 43. Qc6 {[%emt 0:01:42]} Be7 {[%emt 0:00:06]} 44. Qxd6 {[%emt 0:01:54]} Bxd6 {[%emt 0:00:06]} 45. Be2 {[%emt 0:01:02]} e4 {[%emt 0:00:26]} 46. Bb5 {[%emt 0:00:36]} Kf6 {[%emt 0:01:51]} 47. Be8 {[%emt 0:00:01]} Ke7 {[%emt 0:00:07]} 48. Ba4 {[%emt 0:00:03]} Kf6 {[%emt 0:00:46]} 49. Kf1 {[%emt 0:00:06]} g5 {[%emt 0:03:39]} 50. hxg5+ {[%emt 0:00:48]} Kxg5 {[%emt 0:00:02]} 51. Bc2 {[%emt 0:00:13]} f5 {[%emt 0:00:09]} 52. Kg2 {[%emt 0:01:26]} h4 {[%emt 0:00:07]} 53. gxh4+ {[%emt 0:00:08]} Kxh4 {[%emt 0:00:01]} 54. f4 {[%emt 0:00:47]} exf3+ {[%emt 0:00:07]} 1/2-1/2

[Event "18th Caspian Cup-A 2020"]
[Site "Rasht"]
[Date "2020.02.16"]
[Round "4.3"]
[White "Daneshvar, Bardiya"]
[Black "Babujian, Levon"]
[Result "1-0"]
[ECO "D36"]
[WhiteElo "2327"]
[BlackElo "2487"]
[Annotator "ChessBase"]
[PlyCount "69"]
[EventDate "2020.02.14"]
[EventType "swiss"]
[EventCountry "IRI"]
[SourceTitle "playchess.com"]
[Source "ChessBase"]
[SourceQuality "1"]
[TimeControl "5400+30"]

1. d4 {[%emt 0:01:58]} Nf6 {[%emt 0:00:00]} 2. c4 {[%emt 0:01:52]} e6 {[%emt 0:00:00]} 3. Nc3 {[%emt 0:00:12]} d5 {[%emt 0:00:05]} 4. cxd5 {[%emt 0:00:13]} exd5 {[%emt 0:00:10]} 5. Bg5 {[%emt 0:00:05]} c6 {[%emt 0:01:09]} 6. Qc2 {[%emt 0:00:50]} Be7 {[%emt 0:01:52]} 7. e3 {[%emt 0:00:06]} Nbd7 {[%emt 0:00:26]} 8. Bd3 {[%emt 0:00:17]} Nh5 {[%emt 0:02:24]} 9. Bxe7 {[%emt 0:00:30]} Qxe7 {[%emt 0:00:05]} 10. Nge2 {[%emt 0:00:21]} Nb6 {[%emt 0:00:07]} 11. O-O-O {[%emt 0:01:16]} Nf6 {[%emt 0:00:41]} 12. Kb1 {[%emt 0:02:47]} Be6 {[%emt 0:00:23]} 13. h3 {[%emt 0:02:15]} O-O-O {[%emt 0:01:02]} 14. Na4 {[%emt 0:04:40]} Nxa4 {[%emt 0:04:14]} 15. Qxa4 {[%emt 0:00:04]} Kb8 {[%emt 0:00:04]} 16. Rc1 {[%emt 0:01:33]} Qd7 {[%emt 0:00:23]} 17. g4 {[%emt 0:09:22]} h5 {[%emt 0:00:40]} 18. f3 {[%emt 0:00:32]} hxg4 {[%emt 0:00:56]} 19. hxg4 {[%emt 0:00:10]} g5 {[%emt 0:01:27]} 20. Qb4 {[%emt 0:09:48]} Qc7 {[%emt 0:01:38]} 21. Qe1 {[%emt 0:02:06]} Bc8 {[%emt 0:01:05]} 22. Qf2 {[%emt 0:01:48]} Rde8 {[%emt 0:00:57]} 23. Ng3 {[%emt 0:02:53]} Qe7 {[%emt 0:09:17]} 24. Rxh8 {[%emt 0:03:31]} Rxh8 {[%emt 0:02:38]} 25. Rh1 {[%emt 0:16:32]} Re8 {[%emt 0:00:29]} 26. Re1 {[%emt 0:01:51]} a6 {[%emt 0:00:42]} 27. Bf5 {[%emt 0:01:06]} Ka7 {[%emt 0:01:13]} 28. Bxc8 {[%emt 0:01:18]} Rxc8 {[%emt 0:00:06]} 29. Nf5 {[%emt 0:00:47]} Qc7 {[%emt 0:01:56]} 30. Rh1 {[%emt 0:02:26]} c5 {[%emt 0:01:03]} 31. dxc5 {[%emt 0:01:18]} Qxc5 {[%emt 0:00:06]} 32. Qd2 {[%emt 0:00:51]} Nd7 {[%emt 0:01:52]} 33. Qd4 {[%emt 0:09:24]} Ne5 {[%emt 0:03:13]} 34. Ne7 {[%emt 0:06:12]} Qxd4 {[%emt 0:02:30]} 35. Nxc8+ 1-0

[Event "18th Caspian Cup-A 2020"]
[Site "Rasht"]
[Date "2020.02.16"]
[Round "4.4"]
[White "Rasulov, Vugar"]
[Black "Omidi, Arya"]
[Result "1-0"]
[ECO "D70"]
[WhiteElo "2476"]
[BlackElo "2317"]
[Annotator "ChessBase"]
[PlyCount "83"]
[EventDate "2020.02.14"]
[EventType "swiss"]
[EventCountry "IRI"]
[SourceTitle "playchess.com"]
[Source "ChessBase"]
[SourceQuality "1"]
[TimeControl "5400+30"]

1. d4 {[%emt 0:00:00]} Nf6 {[%emt 0:00:00]} 2. c4 {[%emt 0:00:13]} g6 {[%emt 0:00:00]} 3. Nf3 {[%emt 0:00:18]} Bg7 {[%emt 0:00:00]} 4. g3 {[%emt 0:00:14]} O-O {[%emt 0:00:06]} 5. Bg2 {[%emt 0:00:11]} d6 {[%emt 0:00:27]} 6. O-O {[%emt 0:00:07]} Nbd7 {[%emt 0:00:02]} 7. Qc2 {[%emt 0:00:42]} e5 {[%emt 0:00:23]} 8. Rd1 {[%emt 0:00:05]} Re8 {[%emt 0:02:06]} 9. Nc3 {[%emt 0:01:28]} exd4 {[%emt 0:01:58]} 10. Nxd4 {[%emt 0:00:09]} c6 {[%emt 0:00:10]} 11. b3 {[%emt 0:01:13]} Nc5 {[%emt 0:00:28]} 12. e4 {[%emt 0:00:46]} Qc7 {[%emt 0:00:15]} 13. h3 {[%emt 0:00:08]} Bd7 {[%emt 0:01:12]} 14. Be3 {[%emt 0:05:22]} Rad8 {[%emt 0:05:05]} 15. Re1 {[%emt 0:06:42]} h5 {[%emt 0:03:36]} 16. b4 {[%emt 0:04:55]} Ne6 {[%emt 0:01:52]} 17. Rad1 {[%emt 0:00:04]} Nxd4 {[%emt 0:01:06]} 18. Bxd4 {[%emt 0:00:13]} Be6 {[%emt 0:00:13]} 19. Bf1 {[%emt 0:00:19]} Nd7 {[%emt 0:13:01]} 20. Bxg7 {[%emt 0:02:57]} Kxg7 {[%emt 0:01:29]} 21. Ne2 Kg8 {[%emt 0:02:13]} 22. Nd4 {[%emt 0:08:50]} Nf8 23. Qc3 {[%emt 0:07:43]} a6 {[%emt 0:06:05]} 24. Nb3 Qe7 {[%emt 0:02:02]} 25. h4 {[%emt 0:09:00]} Bg4 {[%emt 0:05:05]} 26. f3 {[%emt 0:04:08]} Bc8 {[%emt 0:00:13]} 27. Qd2 {[%emt 0:00:46]} Qc7 {[%emt 0:01:00]} 28. Kh2 {[%emt 0:00:48]} Ne6 {[%emt 0:01:41]} 29. Re3 Ng7 {[%emt 0:08:15]} 30. Rd3 {[%emt 0:04:48]} f5 {[%emt 0:00:44]} 31. c5 {[%emt 0:05:13]} d5 {[%emt 0:02:45]} 32. exd5 {[%emt 0:00:14]} cxd5 {[%emt 0:00:46]} 33. Rxd5 {[%emt 0:02:47]} Rxd5 {[%emt 0:00:09]} 34. Qxd5+ {[%emt 0:00:02]} Be6 {[%emt 0:00:14]} 35. Qd2 {[%emt 0:02:18]} f4 {[%emt 0:00:33]} 36. Qxf4 {[%emt 0:00:11]} Qxf4 {[%emt 0:00:06]} 37. gxf4 {[%emt 0:00:03]} Nf5 {[%emt 0:00:19]} 38. Re1 {[%emt 0:00:35]} Kf8 39. Bd3 {[%emt 0:05:16]} Nxh4 {[%emt 0:03:14]} 40. Nd4 {[%emt 0:04:48]} Bxa2 {[%emt 0:02:42]} 41. Rxe8+ {[%emt 0:00:13]} Kxe8 {[%emt 0:00:01]} 42. Be4 {[%emt 0:00:22]} 1-0

[Event "18th Caspian Cup-A 2020"]
[Site "Rasht"]
[Date "2020.02.16"]
[Round "4.5"]
[White "Yeritsyan, Hayk"]
[Black "Quparadze, Giga"]
[Result "1/2-1/2"]
[ECO "A40"]
[WhiteElo "2291"]
[BlackElo "2462"]
[Annotator "ChessBase"]
[PlyCount "149"]
[EventDate "2020.02.14"]
[EventType "swiss"]
[EventCountry "IRI"]
[SourceTitle "playchess.com"]
[Source "ChessBase"]
[SourceQuality "1"]
[TimeControl "5400+30"]

1. d4 {[%emt 0:00:00]} Nf6 {[%emt 0:00:00]} 2. c4 {[%emt 0:00:00]} e6 {[%emt 0:00:02]} 3. g3 {[%emt 0:00:00]} d5 {[%emt 0:00:24]} 4. Nf3 {[%emt 0:00:05]} Bb4+ {[%emt 0:00:05]} 5. Bd2 {[%emt 0:00:11]} Be7 {[%emt 0:00:07]} 6. Bg2 {[%emt 0:00:17]} O-O {[%emt 0:00:07]} 7. O-O {[%emt 0:00:07]} c6 {[%emt 0:00:17]} 8. Qb3 {[%emt 0:00:20]} Ne4 {[%emt 0:02:23]} 9. Bb4 {[%emt 0:00:19]} Bxb4 {[%emt 0:01:02]} 10. Qxb4 {[%emt 0:00:10]} a5 {[%emt 0:00:10]} 11. Qb3 {[%emt 0:00:55]} b5 {[%emt 0:00:14]} 12. cxb5 {[%emt 0:01:54]} cxb5 {[%emt 0:00:06]} 13. Rc1 b4 {[%emt 0:05:26]} 14. Nbd2 {[%emt 0:09:51]} Nxd2 {[%emt 0:00:18]} 15. Nxd2 {[%emt 0:00:08]} Ba6 {[%emt 0:00:18]} 16. e3 {[%emt 0:03:48]} Nd7 {[%emt 0:02:21]} 17. a3 {[%emt 0:02:38]} bxa3 {[%emt 0:03:17]} 18. Qxa3 {[%emt 0:00:40]} Bb5 {[%emt 0:00:06]} 19. Rc3 {[%emt 0:05:56]} a4 {[%emt 0:01:08]} 20. Rac1 {[%emt 0:00:42]} h5 {[%emt 0:00:34]} 21. Nf3 {[%emt 0:03:45]} Be2 {[%emt 0:00:17]} 22. Rc7 {[%emt 0:03:31]} Bxf3 {[%emt 0:02:59]} 23. Bxf3 {[%emt 0:00:05]} h4 {[%emt 0:00:04]} 24. Qd6 {[%emt 0:03:57]} Nf6 {[%emt 0:00:07]} 25. Qf4 {[%emt 0:01:02]} Qb8 {[%emt 0:00:32]} 26. R1c2 {[%emt 0:01:21]} Ne8 {[%emt 0:00:51]} 27. R7c6 {[%emt 0:00:21]} hxg3 {[%emt 0:02:22]} 28. hxg3 {[%emt 0:00:03]} Qxf4 {[%emt 0:00:20]} 29. gxf4 {[%emt 0:00:06]} g6 {[%emt 0:00:04]} 30. Be2 {[%emt 0:01:20]} Nf6 {[%emt 0:00:12]} 31. Ba6 {[%emt 0:00:34]} Kg7 {[%emt 0:01:50]} 32. Bc8 {[%emt 0:04:43]} Rd8 {[%emt 0:00:06]} 33. Kg2 {[%emt 0:00:44]} Rb8 {[%emt 0:00:07]} 34. Kf3 {[%emt 0:01:11]} Ne4 {[%emt 0:00:30]} 35. Rc7 {[%emt 0:00:26]} Rd6 {[%emt 0:01:00]} 36. Bd7 {[%emt 0:01:02]} Ra6 {[%emt 0:00:09]} 37. Rc8 {[%emt 0:01:49]} Rb4 {[%emt 0:06:00]} 38. R8c7 {[%emt 0:08:21]} Kf6 {[%emt 0:00:11]} 39. Bc8 {[%emt 0:03:28]} Ra8 {[%emt 0:01:46]} 40. Rd7 {[%emt 0:01:25]} Rc4 {[%emt 0:00:21]} 41. Rc7 {[%emt 0:02:09]} Nd2+ {[%emt 0:01:47]} 42. Kg4 {[%emt 0:00:49]} Rxc2 {[%emt 0:12:06]} 43. Rxc2 {[%emt 0:00:05]} Nc4 {[%emt 0:00:11]} 44. Bd7 {[%emt 0:00:13]} Ra5 {[%emt 0:00:05]} 45. Re2 {[%emt 0:01:41]} Ke7 {[%emt 0:01:24]} 46. Bxa4 {[%emt 0:00:24]} f5+ {[%emt 0:02:01]} 47. Kg5 {[%emt 0:02:29]} Rxa4 {[%emt 0:00:08]} 48. b3 {[%emt 0:00:03]} Ra1 {[%emt 0:00:04]} 49. bxc4 {[%emt 0:00:10]} Rg1+ {[%emt 0:01:52]} 50. Kh4 {[%emt 0:00:11]} dxc4 {[%emt 0:00:27]} 51. Rc2 {[%emt 0:00:07]} Kd6 {[%emt 0:00:26]} 52. Rxc4 {[%emt 0:00:16]} Kd5 {[%emt 0:00:04]} 53. Rc5+ {[%emt 0:03:52]} Ke4 {[%emt 0:00:05]} 54. Kh3 {[%emt 0:00:03]} Kf3 {[%emt 0:00:11]} 55. Kh2 {[%emt 0:00:03]} Rg2+ {[%emt 0:01:31]} 56. Kh3 {[%emt 0:00:04]} Rg1 {[%emt 0:00:25]} 57. Kh2 {[%emt 0:00:01]} Rg4 {[%emt 0:00:11]} 58. Rc2 {[%emt 0:09:06]} Rg2+ {[%emt 0:00:16]} 59. Kh3 {[%emt 0:00:03]} Rg1 {[%emt 0:00:26]} 60. Kh4 {[%emt 0:00:49]} g5+ {[%emt 0:00:43]} 61. Kh5 {[%emt 0:00:01]} g4 {[%emt 0:05:32]} 62. Kg5 {[%emt 0:00:57]} Rg2 {[%emt 0:00:11]} 63. Rc6 {[%emt 0:04:00]} Rxf2 {[%emt 0:00:06]} 64. Rxe6 {[%emt 0:00:14]} g3 {[%emt 0:05:05]} 65. Kxf5 {[%emt 0:00:02]} g2 {[%emt 0:00:47]} 66. Rg6 {[%emt 0:00:05]} Rd2 {[%emt 0:00:08]} 67. Ke6 {[%emt 0:01:58]} Re2 {[%emt 0:00:29]} 68. d5 {[%emt 0:00:21]} Rxe3+ {[%emt 0:00:20]} 69. Kd7 {[%emt 0:00:24]} Re4 {[%emt 0:00:07]} 70. d6 {[%emt 0:00:13]} Rxf4 {[%emt 0:00:06]} 71. Rxg2 {[%emt 0:00:13]} Kxg2 {[%emt 0:00:06]} 72. Kc7 {[%emt 0:00:02]} Rc4+ {[%emt 0:00:06]} 73. Kb7 {[%emt 0:00:05]} Rd4 {[%emt 0:00:08]} 74. Kc7 {[%emt 0:00:04]} Rxd6 {[%emt 0:00:04]} 75. Kxd6 1/2-1/2

[Event "18th Caspian Cup-A 2020"]
[Site "Rasht"]
[Date "2020.02.16"]
[Round "4.6"]
[White "Harutjunyan, Gevorg"]
[Black "Khademi, Mohammad Miran"]
[Result "1-0"]
[ECO "C23"]
[WhiteElo "2444"]
[BlackElo "2301"]
[Annotator "ChessBase"]
[PlyCount "55"]
[EventDate "2020.02.14"]
[EventType "swiss"]
[EventCountry "IRI"]
[SourceTitle "playchess.com"]
[Source "ChessBase"]
[SourceQuality "1"]
[TimeControl "5400+30"]

1. e4 {[%emt 0:00:00]} e5 {[%emt 0:01:28]} 2. Bc4 {[%emt 0:00:52]} c6 {[%emt 0:01:35]} 3. Nf3 {[%emt 0:01:59]} d6 {[%emt 0:07:30]} 4. d4 {[%emt 0:03:17]} Qc7 5. Ng5 {[%emt 0:02:48]} Nh6 {[%emt 0:00:55]} 6. O-O {[%emt 0:02:17]} Nd7 {[%emt 0:01:27]} 7. c3 {[%emt 0:02:24]} Nf6 {[%emt 0:05:34]} 8. Bb3 {[%emt 0:07:40]} Be7 {[%emt 0:00:39]} 9. f4 {[%emt 0:03:11]} exd4 {[%emt 0:01:48]} 10. cxd4 {[%emt 0:00:11]} d5 {[%emt 0:00:07]} 11. e5 {[%emt 0:00:58]} Ne4 {[%emt 0:15:06]} 12. Nxe4 {[%emt 0:02:47]} dxe4 {[%emt 0:00:04]} 13. Nc3 {[%emt 0:00:48]} Bf5 {[%emt 0:00:15]} 14. h3 {[%emt 0:00:48]} Rd8 {[%emt 0:05:51]} 15. Be3 {[%emt 0:05:26]} Rg8 {[%emt 0:04:32]} 16. d5 {[%emt 0:03:49]} cxd5 {[%emt 0:04:33]} 17. Nxd5 {[%emt 0:01:47]} Qa5 {[%emt 0:00:03]} 18. Rc1 {[%emt 0:03:12]} Kf8 {[%emt 0:17:42]} 19. Rf2 {[%emt 0:09:25]} g5 {[%emt 0:06:13]} 20. Qh5 {[%emt 0:04:16]} Rxd5 {[%emt 0:00:34]} 21. Qxh6+ {[%emt 0:00:24]} Ke8 {[%emt 0:00:06]} 22. Bxd5 {[%emt 0:02:01]} Qxd5 {[%emt 0:00:02]} 23. Rd2 {[%emt 0:02:03]} Qa5 {[%emt 0:00:42]} 24. e6 {[%emt 0:05:06]} Bxe6 {[%emt 0:08:15]} 25. Qxh7 {[%emt 0:00:16]} Kf8 {[%emt 0:00:08]} 26. fxg5 {[%emt 0:06:35]} Qe5 {[%emt 0:00:46]} 27. Rf2 {[%emt 0:03:29]} Bd6 {[%emt 0:05:58]} 28. Rc8+ {[%emt 0:00:54]} 1-0

[Event "18th Caspian Cup-A 2020"]
[Site "Rasht"]
[Date "2020.02.16"]
[Round "4.7"]
[White "Mirzoev, Azer"]
[Black "Khoshkalam, Seyed Mehrab"]
[Result "1/2-1/2"]
[ECO "E21"]
[WhiteElo "2439"]
[BlackElo "2280"]
[Annotator "ChessBase"]
[PlyCount "167"]
[EventDate "2020.02.14"]
[EventType "swiss"]
[EventCountry "IRI"]
[SourceTitle "playchess.com"]
[Source "ChessBase"]
[SourceQuality "1"]
[TimeControl "5400+30"]

1. d4 {[%emt 0:00:08]} Nf6 {[%emt 0:05:46]} 2. Nf3 {[%emt 0:01:03]} e6 {[%emt 0:01:45]} 3. c4 {[%emt 0:02:03]} b6 {[%emt 0:00:35]} 4. Nc3 {[%emt 0:00:07]} Bb7 {[%emt 0:01:03]} 5. Bg5 {[%emt 0:00:29]} Bb4 {[%emt 0:02:13]} 6. Qb3 c5 {[%emt 0:09:42]} 7. a3 {[%emt 0:01:12]} Bxc3+ {[%emt 0:02:10]} 8. Qxc3 {[%emt 0:00:04]} h6 {[%emt 0:00:45]} 9. Bh4 {[%emt 0:01:53]} g5 {[%emt 0:08:48]} 10. Bg3 {[%emt 0:01:05]} Ne4 {[%emt 0:00:25]} 11. Qd3 {[%emt 0:00:57]} Nxg3 {[%emt 0:05:17]} 12. hxg3 {[%emt 0:00:07]} Qf6 {[%emt 0:02:07]} 13. O-O-O {[%emt 0:07:20]} Bxf3 {[%emt 0:14:07]} 14. exf3 {[%emt 0:07:25]} Qxd4 {[%emt 0:04:01]} 15. Qxd4 {[%emt 0:00:11]} cxd4 {[%emt 0:00:02]} 16. Rxd4 {[%emt 0:00:07]} Nc6 {[%emt 0:00:12]} 17. Rd1 {[%emt 0:00:28]} Rc8 {[%emt 0:01:19]} 18. b3 {[%emt 0:03:18]} Ke7 {[%emt 0:03:59]} 19. g4 {[%emt 0:09:11]} e5 {[%emt 0:02:41]} 20. Kb2 {[%emt 0:00:25]} Nd4 {[%emt 0:01:26]} 21. Bd3 {[%emt 0:00:52]} d6 {[%emt 0:01:18]} 22. Be4 {[%emt 0:01:43]} Kf6 {[%emt 0:02:31]} 23. g3 {[%emt 0:01:03]} Kg7 {[%emt 0:00:15]} 24. f4 {[%emt 0:01:26]} f6 {[%emt 0:00:21]} 25. a4 {[%emt 0:09:27]} Rc7 {[%emt 0:01:43]} 26. Rh5 {[%emt 0:00:22]} a6 {[%emt 0:01:55]} 27. Bd3 {[%emt 0:14:37]} Rc5 {[%emt 0:07:52]} 28. Rhh1 {[%emt 0:11:21]} Rc7 {[%emt 0:04:36]} 29. Rd2 {[%emt 0:01:02]} Re7 {[%emt 0:02:59]} 30. Be4 {[%emt 0:01:28]} Rb8 {[%emt 0:01:10]} 31. Rc1 {[%emt 0:02:57]} Ra7 {[%emt 0:00:54]} 32. Bd3 {[%emt 0:02:58]} Rc7 {[%emt 0:03:39]} 33. Rdd1 {[%emt 0:00:16]} Rbc8 {[%emt 0:01:02]} 34. Re1 {[%emt 0:02:48]} Rh8 {[%emt 0:02:01]} 35. Be4 {[%emt 0:00:52]} Re7 {[%emt 0:01:04]} 36. Rcd1 {[%emt 0:01:00]} Ra7 {[%emt 0:01:48]} 37. Bd5 {[%emt 0:01:22]} Rf8 {[%emt 0:02:15]} 38. f3 {[%emt 0:04:21]} Rc7 {[%emt 0:01:24]} 39. Be4 {[%emt 0:04:45]} Rb8 {[%emt 0:00:39]} 40. fxg5 {[%emt 0:02:48]} hxg5 {[%emt 0:01:32]} 41. Rh1 {[%emt 0:00:14]} Rh8 {[%emt 0:00:24]} 42. Rxh8 {[%emt 0:00:04]} Kxh8 {[%emt 0:00:03]} 43. Rh1+ {[%emt 0:00:12]} Kg8 {[%emt 0:00:02]} 44. b4 {[%emt 0:03:17]} a5 {[%emt 0:00:40]} 45. bxa5 {[%emt 0:00:46]} bxa5 {[%emt 0:00:00]} 46. Kc3 {[%emt 0:00:27]} Rc8 {[%emt 0:01:52]} 47. Rb1 {[%emt 0:00:35]} Kf8 {[%emt 0:00:35]} 48. Rb6 {[%emt 0:00:49]} Ke7 {[%emt 0:00:15]} 49. Rb7+ {[%emt 0:00:05]} Kf8 {[%emt 0:00:30]} 50. Bd5 {[%emt 0:00:18]} Ke8 {[%emt 0:00:17]} 51. Kd3 {[%emt 0:00:17]} Kd8 {[%emt 0:00:58]} 52. Rf7 {[%emt 0:01:32]} Rb8 {[%emt 0:00:13]} 53. Rxf6 {[%emt 0:00:28]} Rb3+ {[%emt 0:00:46]} 54. Ke4 {[%emt 0:00:10]} Ke7 {[%emt 0:00:17]} 55. Rf7+ {[%emt 0:00:13]} Ke8 {[%emt 0:00:10]} 56. Rf6 {[%emt 0:01:47]} Ke7 {[%emt 0:00:01]} 57. Rf7+ {[%emt 0:00:28]} Ke8 {[%emt 0:00:00]} 58. c5 {[%emt 0:00:59]} Rb4 {[%emt 0:00:08]} 59. Rb7 {[%emt 0:01:01]} Ne6+ {[%emt 0:02:25]} 60. Kf5 {[%emt 0:00:18]} Rxb7 {[%emt 0:00:16]} 61. Bxb7 {[%emt 0:00:05]} Nxc5 {[%emt 0:00:03]} 62. Bc6+ {[%emt 0:00:07]} Ke7 {[%emt 0:00:16]} 63. Kxg5 {[%emt 0:00:25]} d5 {[%emt 0:01:11]} 64. Bxd5 {[%emt 0:00:58]} Nxa4 {[%emt 0:00:01]} 65. Kf5 {[%emt 0:00:52]} Nc3 {[%emt 0:00:41]} 66. Kxe5 {[%emt 0:00:11]} a4 {[%emt 0:00:02]} 67. Bc4 {[%emt 0:00:13]} a3 {[%emt 0:00:03]} 68. f4 {[%emt 0:00:56]} a2 {[%emt 0:00:01]} 69. Bxa2 {[%emt 0:00:04]} Nxa2 {[%emt 0:00:03]} 70. g5 {[%emt 0:00:10]} Nb4 {[%emt 0:00:15]} 71. g4 {[%emt 0:00:36]} Kf7 {[%emt 0:00:22]} 72. f5 {[%emt 0:00:26]} Nc6+ {[%emt 0:00:12]} 73. Kd6 {[%emt 0:00:27]} Ne7 {[%emt 0:00:27]} 74. Kd7 {[%emt 0:00:38]} Ng6 {[%emt 0:00:15]} 75. Kd6 {[%emt 0:00:48]} Ne7 {[%emt 0:00:08]} 76. Kc5 {[%emt 0:00:23]} Ng6 {[%emt 0:00:32]} 77. Kd4 {[%emt 0:00:05]} Ne7 {[%emt 0:00:04]} 78. Ke4 {[%emt 0:00:05]} Kg8 {[%emt 0:01:12]} 79. Kf4 {[%emt 0:00:53]} Kf7 {[%emt 0:00:07]} 80. Kg3 {[%emt 0:00:03]} Nd5 {[%emt 0:01:36]} 81. g6+ {[%emt 0:01:00]} Kf6 {[%emt 0:01:09]} 82. Kf3 {[%emt 0:00:12]} Ne7 {[%emt 0:00:17]} 83. Kf4 {[%emt 0:00:02]} Nxg6+ {[%emt 0:00:07]} 84. fxg6 {[%emt 0:00:03]} 1/2-1/2

[Event "18th Caspian Cup-A 2020"]
[Site "Rasht"]
[Date "2020.02.16"]
[Round "4.8"]
[White "Mosadeghpour, Masoud"]
[Black "Jahedi, Mani"]
[Result "1-0"]
[ECO "B32"]
[WhiteElo "2499"]
[BlackElo "2127"]
[Annotator "RC"]
[PlyCount "115"]
[EventDate "2020.02.14"]
[EventType "swiss"]
[EventCountry "IRI"]
[SourceTitle "playchess.com"]
[Source "ChessBase"]
[SourceQuality "1"]
[TimeControl "5400+30"]

1. e4 {[%emt 0:27:57]} c5 {[%emt 0:00:00]} 2. Nf3 {[%emt 0:00:59]} Nc6 {[%emt 0:00:00]} 3. d4 {[%emt 0:00:21]} cxd4 {[%emt 0:00:00]} 4. c3 {[%emt 0:00:05]} Nf6 {[%emt 0:00:09]} 5. e5 {[%emt 0:00:25]} Nd5 {[%emt 0:00:07]} 6. Bc4 {[%emt 0:00:14]} Nb6 {[%emt 0:04:53]} 7. Bb3 {[%emt 0:00:10]} d6 {[%emt 0:02:22]} 8. exd6 {[%emt 0:01:57]} Qxd6 {[%emt 0:01:08]} 9. O-O {[%emt 0:00:07]} Be6 {[%emt 0:03:59]} 10. Na3 {[%emt 0:01:05]} Bxb3 {[%emt 0:09:41]} 11. Qxb3 {[%emt 0:00:49]} e6 {[%emt 0:04:39]} 12. Nb5 {[%emt 0:01:40]} Qd7 {[%emt 0:01:23]} 13. Nbxd4 {[%emt 0:10:04]} Nxd4 {[%emt 0:04:03]} 14. Nxd4 {[%emt 0:01:23]} Be7 {[%emt 0:11:24]} 15. Rd1 {[%emt 0:03:21]} O-O {[%emt 0:03:43]} 16. Nf5 {[%emt 0:03:43]} Qc7 {[%emt 0:02:10]} 17. Nxe7+ {[%emt 0:00:09]} Qxe7 {[%emt 0:00:01]} 18. Bf4 {[%emt 0:00:48]} Nd5 {[%emt 0:11:50]} 19. Bg3 {[%emt 0:03:22]} Rfd8 {[%emt 0:01:48]} 20. Rd4 {[%emt 0:02:54]} Rd7 {[%emt 0:05:28]} 21. Rad1 {[%emt 0:02:01]} Rad8 {[%emt 0:01:59]} 22. h3 {[%emt 0:08:15]} Nb6 {[%emt 0:05:09]} 23. Bh4 {[%emt 0:11:12]} g5 {[%emt 0:13:33]} 24. Rxd7 {[%emt 0:01:27]} Nxd7 {[%emt 0:00:56]} 25. Bg3 {[%emt 0:04:45]} Nc5 {[%emt 0:00:07]} 26. Rxd8+ {[%emt 0:00:34]} Qxd8 {[%emt 0:00:01]} 27. Qb5 {[%emt 0:01:47]} Ne4 {[%emt 0:05:34]} 28. Be5 {[%emt 0:02:46]} b6 {[%emt 0:04:26]} 29. Bd4 {[%emt 0:04:51]} f6 {[%emt 0:03:17]} 30. Qc6 {[%emt 0:00:14]} Qd5 {[%emt 0:00:38]} 31. Qe8+ {[%emt 0:00:05]} Kg7 {[%emt 0:00:10]} 32. Qe7+ {[%emt 0:00:04]} Kg8 {[%emt 0:00:50]} 33. Bxf6 {[%emt 0:04:34]} Nxf6 {[%emt 0:00:17]} 34. Qxf6 {[%emt 0:00:02]} Qxa2 {[%emt 0:00:30]} 35. Qxg5+ {[%emt 0:00:01]} Kf7 {[%emt 0:00:01]} 36. Qf4+ {[%emt 0:00:42]} Kg6 {[%emt 0:00:45]} 37. Qe4+ {[%emt 0:01:03]} Kg7 {[%emt 0:00:43]} 38. Qd4+ {[%emt 0:00:16]} Kg6 {[%emt 0:00:09]} 39. Qd3+ {[%emt 0:00:59]} Kg7 {[%emt 0:00:16]} 40. Qd2 {[%emt 0:00:01]} h6 {[%emt 0:01:09]} 41. h4 {[%emt 0:00:20]} Kg6 {[%emt 0:00:37]} 42. Qe2 {[%emt 0:00:38]} Qd5 {[%emt 0:00:28]} 43. Qg4+ {[%emt 0:00:24]} Kf6 {[%emt 0:00:30]} 44. Qf4+ {[%emt 0:01:21]} Kg6 {[%emt 0:00:13]} 45. g4 {[%emt 0:00:35]} Qd1+ {[%emt 0:00:44]} 46. Kg2 {[%emt 0:00:34]} Qd5+ {[%emt 0:00:30]} 47. Kh2 {[%emt 0:00:26]} Qb3 {[%emt 0:00:34]} 48. h5+ {[%emt 0:01:54]} Kg7 {[%emt 0:00:00]} 49. Qc7+ {[%emt 0:00:29]} Kg8 {[%emt 0:00:41]} 50. Qb8+ {[%emt 0:00:09]} Kg7 {[%emt 0:00:13]} 51. Qxa7+ {[%emt 0:00:05]} Kg8 {[%emt 0:00:08]} 52. Qb8+ {[%emt 0:00:09]} Kg7 {[%emt 0:00:12]} 53. Qe5+ {[%emt 0:00:08]} Kf7 {[%emt 0:00:23]} 54. Qf4+ {[%emt 0:00:31]} Kg7 {[%emt 0:00:01]} 55. Qe4 {[%emt 0:00:18]} Qxb2 {[%emt 0:01:06]} 56. Qg6+ {[%emt 0:00:05]} Kf8 {[%emt 0:00:10]} 57. Qxh6+ {[%emt 0:00:12]} Ke7 {[%emt 0:00:11]} 58. Qe3 {[%emt 0:00:28]} 1-0